Cogmind - Beta 9.2 @@@ ROGUE MODE // 2019.11.24 @ 01:52:03 Player: Trione Result: Destroyed by G-67 Veteran with Plasma Rifle Performance ------------- Evolutions (4) 2000 Regions Visited (14) 2800 Robots Destroyed (282) 1410 Value Destroyed (9282) 9282 Prototype IDs (30) 600 Alien Tech Used (0) 0 Bonus (2406) 2406 TOTAL SCORE: 18498 Bonus ------- High Alert Combat Kills 809 Follower Combat Kills 77 Entered Garrisons 800 Used RIF Installer 1500 Aligned with FarCom 300 Friendly Fire -1080 Cogmind --------- Core Integrity 0/850 Matter 6/300 Energy 23/100 System Corruption 10% Temperature Cool (224) Movement Rolling (130) Ox3 Location -6/Garrison Parts ------- > --- POWER (1) -------- (None) > --- PROPULSION (3) --- Armored Huge Wheel > --- UTILITY (9) ------ Large Storage Unit Large Storage Unit Large Storage Unit High-capacity Storage Unit Enhanced Optical Array Armor Integrity Analyzer Hardened Light Armor Plating Layered Light Armor Plating Advanced Hacking Suite > --- WEAPON (2) ------- Coil Gun > --- INVENTORY (30) --- Armored Huge Wheel Armored Huge Wheel Improved Heat Sink Large Storage Unit Matter Compressor (250) Modified TNC Energy Filter Advanced Hacking Suite Advanced Hacking Suite Advanced Hacking Suite Relay Coupler [NC] (22) Relay Coupler [NC] (22) Relay Coupler [Behemoth] (12) System Backup Module System Backup Module Chronowheel Heavy Laser Phase Cannon Gauss Rifle Gauss Cannon Heavy Missile Launcher Remote Datajack Power Sword Spear Peak State ------------ > --- POWER ------------ Fission Core > --- PROPULSION ------- Compact Wheel Armored Huge Wheel > --- UTILITY ---------- Large Storage Unit Large Storage Unit Large Storage Unit High-capacity Storage Unit Enhanced Optical Array Layered Light Armor Plating Advanced Hacking Suite Improved System Shield System Backup Module > --- WEAPON ----------- Heavy Ion Cannon Heavy Machine Gun > --- INVENTORY -------- Armored Huge Wheel Armored Huge Wheel Improved Heat Sink Large Storage Unit Modified TNC Armor Integrity Analyzer Energy Filter Hardened Light Armor Plating Hardened Light Armor Plating Hardened Light Armor Plating Improved Hardlight Generator Advanced Hacking Suite Advanced Hacking Suite Relay Coupler [NC] Relay Coupler [NC] Relay Coupler [Grunt] Relay Coupler [Behemoth] Chronowheel Phase Cannon Gauss Rifle Gauss Rifle Coil Gun Gauss Cannon Proton Missile Launcher Heavy Missile Launcher Remote Datajack Power Sword Spear [Rating: 62] Favorites ----------- Power Light Ion Engine Engine Light Ion Engine Power Core Light Nuclear Core Propulsion Compact Wheel Treads Light Treads Leg Carbon-fiber Leg Wheel Compact Wheel Hover Unit Combat Airjet Utility Large Storage Unit Device Improved Heat Sink Storage Large Storage Unit Processor Enhanced Optical Array Hackware Relay Coupler [NC] Protection Improved Light Armor Plating Weapon Advanced Beam Cannon Energy Gun Medium Laser Energy Cannon Advanced Beam Cannon Ballistic Gun Gauss Rifle Ballistic Cannon Assault Cannon Launcher Missile Launcher Special Weapon Remote Datajack Slashing Weapon Power Sword Piercing Weapon Spear Special Melee Weapon Improved Datajack Build | -11 -10 -10 -9 -9 -9 -8 -8 -8 -7 -7 -7 -7 -6 -6 ------- Run | Scr Mat Min Mat Min Exi Min Mat Gar Fac Gar Fac Gar Fac Gar Slots Evolved 8 | . . . 2 . . . 2 . 2 . . . 2 . Power . | . . . . . . . . . . . . . . . Propulsion 1 | . . . . . . . . . . . . . 1 . Utility 7 | . . . 2 . . . 2 . 2 . . . 1 . Weapon . | . . . . . . . . . . . . . . . Parts Attached 386 | 6 20 18 30 7 4 . 14 4 65 33 42 33 97 13 Power 17 | 1 1 . 2 1 . . . . 2 3 2 2 3 . Engine 12 | 1 1 . 2 1 . . . . 2 2 1 . 2 . Core 5 | . . . . . . . . . . 1 1 2 1 . Reactor . | . . . . . . . . . . . . . . . Propulsion 65 | 2 5 6 4 1 . . 3 . 17 2 6 4 15 . Treads 23 | 2 2 2 4 1 . . . . 4 . 3 2 3 . Leg 1 | . . . . . . . . . . . . . 1 . Wheel 39 | . 3 4 . . . . 3 . 12 2 3 2 10 . Hover 2 | . . . . . . . . . 1 . . . 1 . Flight . | . . . . . . . . . . . . . . . Utility 112 | 1 3 1 5 1 4 . 4 2 19 9 16 7 32 8 Device 33 | . . . 1 . 1 . . . 8 5 5 2 9 2 Storage 17 | 1 2 1 . . 2 . 1 . 2 2 2 1 3 . Processor 2 | . . . . . . . . . . . 1 . . 1 Hackware 8 | . . . . . . . . . . . . 2 5 1 Protection 52 | . 1 . 4 1 1 . 3 2 9 2 8 2 15 4 Artifact . | . . . . . . . . . . . . . . . Weapon 192 | 2 11 11 19 4 . . 7 2 27 19 18 20 47 5 Energy Gun 34 | 1 6 8 4 . . . . . 1 2 3 1 6 2 Energy Cannon 40 | . . . 5 1 . . 3 1 11 5 4 2 8 . Ballistic Gun 28 | 1 1 . 4 1 . . . . 3 . 4 6 7 1 Ballistic Cannon 13 | . . . 1 . . . 1 . 2 5 . . 4 . Launcher 48 | . 4 3 5 2 . . 2 1 6 7 3 9 5 1 Special Weapon 7 | . . . . . . . . . . . . . 6 1 Impact Weapon . | . . . . . . . . . . . . . . . Slashing Weapon 10 | . . . . . . . 1 . . . . . 9 . Piercing Weapon 9 | . . . . . . . . . 3 . 4 1 1 . Special Melee Weapon 3 | . . . . . . . . . 1 . . 1 1 . Unidentified Prototypes 7 | . . 1 2 . . . . . 3 . 1 . . . Parts Lost 96 | . 7 5 10 2 . . 2 1 7 12 8 14 21 7 Power 12 | . 1 . 2 1 . . . . . 3 2 1 1 1 Propulsion 23 | . 2 2 3 1 . . . . 1 1 1 4 7 1 Utility 28 | . 1 . 1 . . . . 1 6 5 2 5 4 3 Weapon 33 | . 3 3 4 . . . 2 . . 3 3 4 9 2 Highest Loss Streak 14 | . 6 2 3 1 . . 1 1 2 5 3 14 6 6 Average Slot Usage (%) 92 | . 93 99 90 97 90 88 88 89 91 83 90 95 97 87 Engine 7 | . 13 14 10 8 11 11 9 9 7 6 3 . 3 . Core 1 | . . . . . . . . . . . 3 7 2 5 Treads 7 | . 11 3 20 22 22 22 6 . 1 7 2 . 1 . Wheel 10 | . 16 24 1 . . . 12 18 13 6 12 14 15 8 Device 8 | . . . 2 11 10 11 9 9 13 14 11 8 4 6 Storage 20 | . 14 28 22 22 13 11 17 18 15 20 23 22 24 26 Processor 2 | . . . . . . . . . . . 5 7 6 6 Hackware 4 | . . . . . . . . . . . . 11 15 6 Protection 11 | . 7 . 11 11 10 11 17 17 24 11 11 6 6 11 Energy Gun 3 | . 18 27 2 . . . . . . 4 4 . . 2 Energy Cannon 6 | . . . 6 19 22 22 14 16 7 5 4 2 . . Ballistic Gun 3 | . 9 . 8 2 . . . . 3 . 2 6 3 6 Piercing Weapon 1 | . . . . . . . . . 1 1 2 2 2 . Naked Turns . | . . . . . . . . . . . . . . . Heaviest Build 220 | 11 26 45 57 52 139 96 122 123 154 220 167 158 116 110 Greatest Support 56 | 40 40 40 40 40 40 40 40 32 56 56 48 24 48 44 Greatest Overweight (x) 14 | . . 3 1 1 3 2 3 3 14 6 6 12 9 3 Average Overweight (x) 2 | . . 1 . 1 1 2 2 3 4 4 5 3 2 2 Largest Inventory Capacity 58 | 6 10 16 16 16 38 24 30 30 38 52 58 38 30 30 Average Capacity 26 | 5 9 16 16 16 22 24 29 30 30 38 38 26 28 30 Most Carried 38 | 4 10 15 16 16 24 24 30 30 32 37 38 38 30 30 Average Carried 25 | 3 6 10 14 15 21 23 28 29 30 33 37 25 27 29 Final Capacity 38 | 6 10 16 16 16 24 24 30 30 32 38 38 24 30 30 Final Carried 38 | 4 8 15 16 16 24 24 30 30 32 36 38 24 30 26 Class Distribution -------------------- 48% | Hauler-Mutant 19% | Scavenger-Mutant 13% | Mutant 10% | Bothacker-Mutant 6% | Hacker-Mutant Dominant Class ---------------- Mutant | -10/Materials Mutant | -10/Mines Scavenger-Mutant | -9/Materials Scavenger-Mutant | -9/Mines Hauler-Mutant | -9/Exiles Hauler-Mutant | -8/Mines Hauler-Mutant | -8/Materials Hauler-Mutant | -8/Garrison Hauler-Mutant | -7/Factory Hauler-Mutant | -7/Garrison Hauler-Mutant | -7/Factory Bothacker-Mutant | -7/Garrison Hacker-Mutant | -6/Factory Hauler-Mutant | -6/Garrison Resources | -11 -10 -10 -9 -9 -9 -8 -8 -8 -7 -7 -7 -7 -6 -6 ----------- Run | Scr Mat Min Mat Min Exi Min Mat Gar Fac Gar Fac Gar Fac Gar Matter Collected 7062 | 275 330 225 752 124 . . 261 126 1149 747 517 659 1763 134 Remotely . | . . . . . . . . . . . . . . . Salvage Created 11194 | 70 682 590 1529 474 . . 947 254 1714 1125 813 533 2322 141 Parts 506 | 1 33 27 91 29 . . 50 6 71 38 31 32 94 3 Haulers Intercepted 13 | . 2 . 4 . . . 3 . 3 . . . 1 . Recyclers Shooed 22 | . 1 4 2 . . . 3 . 3 . 3 . 6 . Parts Field Recycled . | . . . . . . . . . . . . . . . Retrieved Matter . | . . . . . . . . . . . . . . . Parts Self-Destructed . | . . . . . . . . . . . . . . . Prevented . | . . . . . . . . . . . . . . . Kills | -11 -10 -10 -9 -9 -9 -8 -8 -8 -7 -7 -7 -7 -6 -6 ------- Run | Scr Mat Min Mat Min Exi Min Mat Gar Fac Gar Fac Gar Fac Gar Combat Hostiles Destroyed 204 | . 14 12 32 12 . . 14 7 19 24 13 22 29 6 Melee 5 | . 1 . . . . . . . 1 . 1 . 2 . Guns 49 | . 9 6 9 1 . . . . 3 . 8 3 8 2 Cannons 55 | . . . 10 8 . . 8 3 6 10 3 2 5 . AOE 88 | . 4 6 13 3 . . 5 4 9 12 1 16 11 4 Classes Destroyed 14 | 1 4 1 5 . . . 1 . 2 . . . . . Worker 15 | . 2 4 1 1 . . 1 . 2 . 2 . 2 . Builder 4 | . . . 2 . . . . . 1 . 1 . . . Tunneler 4 | . 1 . . . . . . . 1 . 1 . 1 . Hauler 13 | . 2 . 4 . . . 3 . 3 . . . 1 . Recycler 29 | 1 1 1 6 1 . . 3 . 9 . 2 . 5 . Operator 5 | . . . . . . . . . 2 . 1 . 2 . Watcher 7 | . . . 3 . . . 1 . 2 . . . 1 . Swarmer 53 | . . 6 10 5 . . 3 . 3 9 . 14 3 . Grunt 96 | . 14 6 16 6 . . 5 4 7 11 3 5 15 4 Brawler 7 | . . . 1 1 . . . 3 . . . 1 1 . Duelist 8 | . . . 1 . . . 1 . 2 . 1 2 1 . Sentry 17 | . . . 4 . . . 4 . 1 3 4 . 1 . Hunter 11 | . . . . . . . 1 . 3 1 2 . 2 2 Programmer 12 | . . . . . . . . . 3 . 3 . 6 . Best Kill Streak 9 | 1 3 3 7 3 . . 5 4 5 9 4 5 8 4 Combat Bots Only 9 | . 3 3 4 3 . . 4 4 4 9 3 5 5 4 Max Kills in Single Turn 6 | 1 2 3 4 2 . . 2 2 2 3 1 3 6 2 Gunslinging 1 | . . . . . . . . . . . . . . 1 Exploded 5 | . 1 3 3 2 . . 2 2 2 3 1 3 5 1 Melee 1 | . 1 . . . . . . . 1 . 1 . 1 . Uniques/NPCs Destroyed 1 | . . 1 . . . . . . . . . . . . YI-UF0 (-10/Mines) Combat | -11 -10 -10 -9 -9 -9 -8 -8 -8 -7 -7 -7 -7 -6 -6 -------- Run | Scr Mat Min Mat Min Exi Min Mat Gar Fac Gar Fac Gar Fac Gar Damage Taken 15936 | . 793 353 1229 189 . . 726 186 1816 1702 1590 1728 4155 1469 Core 1991 | . 154 67 163 . . . 24 48 141 222 169 135 602 266 Absorbed by Shields 193 | . . . . . . . . . . 9 . . . 184 Core Remaining (%) 52 | 100 . 11 . . . 59 . 86 . . . 4 . . Volleys Fired 782 | 5 64 54 132 19 . . 58 13 106 93 48 49 116 25 Largest 2 | 2 2 2 2 2 . . 2 2 2 2 2 2 2 2 Hottest 160 | 70 100 90 136 136 . . 143 143 150 138 160 108 129 110 Shots Fired 1232 | 10 116 92 208 35 . . 103 19 162 119 87 64 185 32 Gun 582 | 10 109 89 104 11 . . . . 46 13 64 30 89 17 Cannon 531 | . . . 94 21 . . 99 12 103 89 20 19 74 . Launcher 107 | . 7 3 10 3 . . 4 7 13 17 3 15 15 10 Special 12 | . . . . . . . . . . . . . 7 5 Kinetic 430 | 5 38 . 129 11 . . 2 . 74 40 9 27 88 7 Thermal 532 | 5 59 77 67 21 . . 97 12 39 16 75 22 32 10 Explosive 92 | . 7 3 10 3 . . 4 7 13 14 3 15 3 10 Electromagnetic 166 | . 12 12 2 . . . . . 36 49 . . 55 . Robot Hit Streak 18 | 7 13 9 13 10 . . 12 4 18 11 15 11 16 10 Robot Miss Streak 7 | 1 4 4 5 3 . . 4 2 5 4 3 3 7 3 Penetration Max 1 | . . . . . . . . . 1 . . . 1 . Secondary Targets 2 | . 1 . . . . . . . . . . . . 1 Max Gunslinging Chain 1 | . 1 . . . . . . . . . . . . 1 Shots Hit Robots 848 | 7 75 57 137 21 . . 61 11 112 51 88 44 159 25 Core Hits 520 | 2 40 27 73 15 . . 27 17 59 64 54 35 91 16 Critical Hits 27 | . 1 . 3 4 . . 12 2 3 1 1 . . . Critical Kills 10 | . . . 1 4 . . 2 1 1 . 1 . . . Critical Parts Destroyed 16 | . 1 . 2 . . . 10 . 2 1 . . . . Melee Attacks 134 | . . . . . . . 10 . 26 . 26 2 70 . Impact . | . . . . . . . . . . . . . . . Slashing 49 | . . . . . . . 10 . . . . . 39 . Piercing 67 | . . . . . . . . . 25 . 26 . 16 . Sneak Attacks 21 | . . . . . . . 3 . 4 . 4 1 9 . Combat Hostiles . | . . . . . . . . . . . . . . . Follow-up Attacks . | . . . . . . . . . . . . . . . Damage Inflicted 28065 | 87 1463 843 2877 701 . . 1931 797 4616 3724 2245 2118 5402 1261 Guns 6504 | 87 919 568 704 89 . . . . 750 . 1291 408 1416 272 Cannons 8076 | . . . 1205 306 . . 1173 156 1863 1385 373 375 1240 . Explosions 11543 | . 526 275 968 306 . . 456 641 1487 2339 107 1335 2114 989 Melee 1901 | . . . . . . . 302 . 516 . 474 . 609 . Ramming 41 | . 18 . . . . . . . . . . . 23 . Kinetic 5028 | 50 238 . 1208 89 . . 24 . 1058 369 173 353 1318 148 Thermal 7203 | 37 745 516 675 306 . . 1149 156 790 76 1491 430 708 124 Explosive 10124 | . 338 218 968 306 . . 456 641 1346 2175 107 1335 1245 989 Electromagnetic 3768 | . 124 109 26 . . . . . 906 1104 . . 1499 . Impact . | . . . . . . . . . . . . . . . Slashing 575 | . . . . . . . 302 . . . . . 273 . Piercing 1326 | . . . . . . . . . 516 . 474 . 336 . Highest Corruption 16 | . 1 1 . . . . 1 1 8 8 7 8 16 12 Average Corruption 5 | . 1 1 . . . . 1 1 5 7 6 7 8 10 Corruption Purged 16 | . . . . . . . . . . 1 3 . 10 2 Effects 295 | . 3 5 . . . . 7 . 42 51 48 28 101 10 Message Errors 63 | . 1 1 . . . . 1 . 9 14 13 9 15 . Matter Fused 62 | . . . . . . . . . 12 9 16 6 16 3 Heat Flow Errors 27 | . . . . . . . . . 4 5 3 4 11 . Energy Discharges 32 | . 1 3 . . . . 1 . 4 5 3 2 13 . Parts Rejected 3 | . . . . . . . . . 1 . . . 2 . Data Loss (minor) 30 | . 1 . . . . . 1 . 4 5 2 2 14 1 Data Loss (major) 10 | . . . . . . . . . 3 4 1 . 2 . Misfires 5 | . . . . . . . . . . 1 2 . 2 . Alerts 3 | . . . . . . . . . . . . . 2 1 Misdirections 10 | . . . . . . . . . . . . . 10 . Targeting Errors 43 | . . 1 . . . . 4 . 3 6 7 4 13 5 Weapon Failures 7 | . . . . . . . . . 2 2 1 1 1 . Overload Shots . | . . . . . . . . . . . . . . . Overflow Damage 959 | . . 11 10 30 . . 57 35 397 90 . 49 254 26 Projectiles 158 | . . . 1 . . . 8 . 101 18 . 9 21 . Explosions 531 | . . 11 9 30 . . 8 35 157 72 . 40 143 26 Melee 270 | . . . . . . . 41 . 139 . . . 90 . Knockbacks 26 | . . . 1 . . . . . 3 3 . . 19 . Impact . | . . . . . . . . . . . . . . . Kinetic 26 | . . . 1 . . . . . 3 3 . . 19 . Secondary . | . . . . . . . . . . . . . . . Self-Inflicted Damage 813 | . 31 . 34 8 . . . . 116 105 . 35 484 . Shots 16 | . 1 . 1 1 . . . . 2 3 . 2 6 . Rammed 7 | . 6 . . . . . . . . . . . 1 . Targets Rammed 8 | . 7 . . . . . . . . . . . 1 . Kicked . | . . . . . . . . . . . . . . . Crushed 1 | . 1 . . . . . . . . . . . . . Highest Temperature 384 | 45 334 317 336 120 . . 147 75 291 271 152 337 297 384 Average Temperature 76 | 23 99 79 59 33 . . 32 34 82 94 45 121 76 142 Received Heat Transfer 4006 | . 408 153 426 60 . . 243 99 426 468 318 345 711 349 Effects 6 | . . . . . . . . . 1 . . 2 . 3 Shutdowns 1 | . . . . . . . . . . . . . . 1 Energy Bleed 4 | . . . . . . . . . . . . 2 . 2 Interference 1 | . . . . . . . . . 1 . . . . . Siege Activations . | . . . . . . . . . . . . . . . Robots Corrupted 11 | . . 1 . . . . . . 1 5 . . 4 . Combat Hostiles 5 | . . . . . . . . . . 2 . . 3 . Parts Fried 22 | . . 1 . . . . . . 4 8 . . 9 . Impact Corruptions . | . . . . . . . . . . . . . . . Robots Melted 2 | . . . . . . . 1 . . . . 1 . . Combat Hostiles 2 | . . . . . . . 1 . . . . 1 . . Parts Melted 27 | . 1 3 3 . . . 7 1 . . 9 2 1 . Heat Transferred 13001 | 111 1778 1194 1340 555 . . 2072 259 1025 87 2943 623 829 185 Parts Sabotaged . | . . . . . . . . . . . . . . . Parts Stolen . | . . . . . . . . . . . . . . . Parts Stripped . | . . . . . . . . . . . . . . . Power Chain Reactions 4 | . 1 1 . . . . . . 1 1 . . . . Missiles Intercepted . | . . . . . . . . . . . . . . . Alert | -11 -10 -10 -9 -9 -9 -8 -8 -8 -7 -7 -7 -7 -6 -6 ------- Run | Scr Mat Min Mat Min Exi Min Mat Gar Fac Gar Fac Gar Fac Gar Peak Influence 926 | 5 277 174 592 400 . . 337 371 560 926 563 651 634 554 Average Influence 322 | 1 155 93 313 217 . . 144 297 237 727 384 535 334 453 Maximum Alert Level 3 | . 1 . 2 2 . . 1 1 2 3 2 2 2 2 Low Security (%) 26 | 100 62 100 26 39 . 100 73 27 28 . 5 2 8 . Level 1 42 | . 37 . 49 53 . . 26 72 57 6 60 14 55 . Level 2 24 | . . . 24 6 . . . . 13 24 33 83 35 100 Level 3 6 | . . . . . . . . . . 68 . . . . Level 4 . | . . . . . . . . . . . . . . . Level 5 . | . . . . . . . . . . . . . . . High Security . | . . . . . . . . . . . . . . . Max Security . | . . . . . . . . . . . . . . . Squads Dispatched 37 | . 8 . 4 . . . . . 7 . 5 . 13 . Investigation 9 | . 4 . 1 . . . . . 1 . 1 . 2 . Extermination 11 | . . . . . . . . . 3 . 2 . 6 . Reinforcement 15 | . 4 . 2 . . . . . 3 . 2 . 4 . Assault 2 | . . . 1 . . . . . . . . . 1 . Garrison . | . . . . . . . . . . . . . . . Intercept . | . . . . . . . . . . . . . . . Construction Impeded 3 | . . . . . . . . . . . 1 . 2 . Haulers Reinforced 2 | . . . . . . . . . 1 . . . 1 . Alert ID Control Effect 1 | . . . . . . . . . . . . . . 1 Stealth | -11 -10 -10 -9 -9 -9 -8 -8 -8 -7 -7 -7 -7 -6 -6 --------- Run | Scr Mat Min Mat Min Exi Min Mat Gar Fac Gar Fac Gar Fac Gar Distress Signals 12 | . 3 . 4 . . . 2 . . . 1 . 2 . Communications Jammed . | . . . . . . . . . . . . . . . Distress Signals . | . . . . . . . . . . . . . . . Times Spotted 336 | . 30 14 58 15 . . 25 9 39 26 16 27 63 14 Peak Tracking Total 8 | . 6 3 5 3 . . 6 4 5 7 3 7 8 7 Tactical Retreats 41 | . 4 . 9 3 . . 2 2 8 6 1 3 2 1 Traps | -11 -10 -10 -9 -9 -9 -8 -8 -8 -7 -7 -7 -7 -6 -6 ------- Run | Scr Mat Min Mat Min Exi Min Mat Gar Fac Gar Fac Gar Fac Gar Traps Triggered 19 | . 3 . . . . . 1 . . 6 . 6 3 . Indirectly . | . . . . . . . . . . . . . . . Trap Hack Attempts 9 | . . . . . . . . . . . . 5 4 . Triggered . | . . . . . . . . . . . . . . . Disarmed . | . . . . . . . . . . . . . . . Reprogrammed 1 | . . . . . . . . . . . . . 1 . Reused 1 | . . . . . . . . . . . . . 1 . Traps Extracted . | . . . . . . . . . . . . . . . Installed . | . . . . . . . . . . . . . . . Triggered 1 | . . . . . . . . . . . . . 1 . Machines | -11 -10 -10 -9 -9 -9 -8 -8 -8 -7 -7 -7 -7 -6 -6 ---------- Run | Scr Mat Min Mat Min Exi Min Mat Gar Fac Gar Fac Gar Fac Gar Machines Disabled 28 | . 2 2 4 1 . . 2 . 7 1 . 2 7 . Max in Single Turn 4 | . 2 2 1 1 . . 1 . 2 1 . 1 4 . Garrison Access 2 | . . . . . . . . . 1 . . . 1 . Garrison Relay 2 | . . . . . . . . . . 1 . 1 . . Machines Sabotaged . | . . . . . . . . . . . . . . . Garrisons Compromised . | . . . . . . . . . . . . . . . Overloaded Fab Kills . | . . . . . . . . . . . . . . . Fab Network Shutdowns 1 | . . . . . . . . . . . . . 1 . Hacking | -11 -10 -10 -9 -9 -9 -8 -8 -8 -7 -7 -7 -7 -6 -6 --------- Run | Scr Mat Min Mat Min Exi Min Mat Gar Fac Gar Fac Gar Fac Gar Machines Accessed 66 | . 4 . 6 . 1 . 7 . 15 . 12 . 21 . Terminals 35 | . 2 . 6 . . . 4 . 8 . 3 . 12 . Fabricators 5 | . . . . . . . . . 1 . 1 . 3 . Repair Stations 8 | . . . . . . . 2 . 1 . 4 . 1 . Recycling Units 9 | . 2 . . . . . . . 2 . 2 . 3 . Scanalyzers 2 | . . . . . . . . . 1 . 1 . . . Garrison Access 6 | . . . . . . . 1 . 2 . 1 . 2 . Total Hacks 165 | . 5 . 16 . 1 . 12 . 36 . 27 . 68 . Successful 93 | . 3 . 9 . 1 . 8 . 11 . 17 . 44 . Failed 72 | . 2 . 7 . . . 4 . 25 . 10 . 24 . Catastrophic 11 | . 1 . . . . . . . 4 . 2 . 4 . Database Lockouts . | . . . . . . . . . . . . . . . Manual 96 | . 5 . 16 . 1 . 10 . 21 . 7 . 36 . Terminals 105 | . 3 . 16 . . . 9 . 23 . 10 . 44 . Fabricators 22 | . . . . . . . . . 4 . 3 . 15 . Repair Stations 14 | . . . . . . . 2 . 1 . 9 . 2 . Recycling Units 12 | . 2 . . . . . . . 3 . 2 . 5 . Scanalyzers 5 | . . . . . . . . . 3 . 2 . . . Garrison Access 6 | . . . . . . . 1 . 2 . 1 . 2 . Terminal Hacks 25 | . . . 2 . 1 . 1 . 2 . 4 . 15 . Part Schematic 6 | . . . 1 . . . . . 1 . . . 4 . Machine Index 1 | . . . . . . . . . . . . . 1 . Terminal Index 1 | . . . . . . . . . 1 . . . . . Unreport Threat 5 | . . . . . . . . . . . 2 . 3 . Locate Traps 2 | . . . . . . . . . . . 1 . 1 . Hauler Manifests 1 | . . . . . . . . . . . . . 1 . Zone Layout 8 | . . . 1 . . . 1 . . . 1 . 5 . EX-Prototype ID Bank 1 | . . . . . 1 . . . . . . . . . Fabricator Hacks 13 | . . . . . . . . . 2 . . . 11 . Network Status 1 | . . . . . . . . . . . . . 1 . Load Schematic 5 | . . . . . . . . . 1 . . . 4 . Build 7 | . . . . . . . . . 1 . . . 6 . Repair Station Hacks 10 | . . . . . . . . . . . 8 . 2 . Scan Component 5 | . . . . . . . . . . . 4 . 1 . Repair 4 | . . . . . . . . . . . 3 . 1 . Refit 1 | . . . . . . . . . . . 1 . . . Recycling Unit Hacks 4 | . . . . . . . . . . . 1 . 3 . Retrieve Components 4 | . . . . . . . . . . . 1 . 3 . Scanalyzer 1 | . . . . . . . . . 1 . . . . . Insert Component 1 | . . . . . . . . . 1 . . . . . Garrison Access Hacks 6 | . . . . . . . 1 . 2 . 1 . 2 . Unlock Access 4 | . . . . . . . 1 . 1 . 1 . 1 . Seal Access 2 | . . . . . . . . . 1 . . . 1 . Unauthorized Hacks 89 | . 7 . 18 . . . 13 . 19 . 8 . 24 . Terminals 31 | . 1 . 7 . . . 6 . 4 . 3 . 10 . Track 17 | . 1 . 3 . . . 4 . 3 . 1 . 5 . Assimilate 1 | . . . . . . . . . . . . . 1 . Botnet 10 | . . . 3 . . . 2 . . . 2 . 3 . Disrupt 1 | . . . 1 . . . . . . . . . . . Operators 2 | . . . . . . . . . 1 . . . 1 . Fabricators 1 | . . . . . . . . . . . . . 1 . Report 1 | . . . . . . . . . . . . . 1 . Repair Stations . | . . . . . . . . . . . . . . . Recycling Units 2 | . 2 . . . . . . . . . . . . . Tunnel 2 | . 2 . . . . . . . . . . . . . Scanalyzers . | . . . . . . . . . . . . . . . Garrison Access . | . . . . . . . . . . . . . . . Data Cores Recovered . | . . . . . . . . . . . . . . . Used . | . . . . . . . . . . . . . . . Hacking Detections 53 | . 2 . 6 . . . 5 . 14 . 11 . 15 . Full Trace Events 5 | . . . 1 . . . . . 1 . 1 . 2 . Feedback Events . | . . . . . . . . . . . . . . . Feedback Blocked . | . . . . . . . . . . . . . . . Robot Schematics Acquired . | . . . . . . . . . . . . . . . Robots Built . | . . . . . . . . . . . . . . . Matter . | . . . . . . . . . . . . . . . Time . | . . . . . . . . . . . . . . . Total Robot Build Rating . | . . . . . . . . . . . . . . . Part Schematics Acquired 6 | . . . 1 . . . . . 1 . . . 4 . Parts Built 7 | . . . . . . . . . 1 . . . 6 . Matter 1162 | . . . . . . . . . 146 . . . 1016 . Time 539 | . . . . . . . . . 73 . . . 466 . Total Part Build Rating 35 | . . . . . . . . . 3 . . . 32 . Parts Repaired 4 | . . . . . . . . . . . 3 . 1 . Time 124 | . . . . . . . . . . . 92 . 32 . Parts Recycled . | . . . . . . . . . . . . . . . Recycled Matter . | . . . . . . . . . . . . . . . Retrieved Matter . | . . . . . . . . . . . . . . . Retrieved Components 10 | . . . . . . . . . . . . . 10 . Parts Scanalyzed 1 | . . . . . . . . . 1 . . . . . Part Schematics Acquired . | . . . . . . . . . . . . . . . Parts Damaged . | . . . . . . . . . . . . . . . Bothacking | -11 -10 -10 -9 -9 -9 -8 -8 -8 -7 -7 -7 -7 -6 -6 ------------ Run | Scr Mat Min Mat Min Exi Min Mat Gar Fac Gar Fac Gar Fac Gar Used RIF Installer 3 | . . . . . . . . 1 . 1 . 1 . . Patrol Navigation 1 | . . . . . . . . . . 1 . . . . Alert ID Control 1 | . . . . . . . . . . . . 1 . . Robots Hacked 14 | . . . . . . . . . 1 . . 1 9 3 Non-combat 9 | . . . . . . . . . . . . . 9 . Combat 5 | . . . . . . . . . 1 . . 1 . 3 Robot Hacks Applied 17 | . . . . . . . . . 1 . . 1 11 4 parse_system 1 | . . . . . . . . . 1 . . . . . no_distress 1 | . . . . . . . . . . . . . 1 . find_chute 1 | . . . . . . . . . . . . . 1 . find_fabricator 1 | . . . . . . . . . . . . . 1 . drop_inventory 1 | . . . . . . . . . . . . . 1 . find_recycling 2 | . . . . . . . . . . . . . 2 . ignore_parts 1 | . . . . . . . . . . . . . 1 . block_reporting 2 | . . . . . . . . . . . . . 2 . map_route 1 | . . . . . . . . . . . . . 1 . scatter_targeting 2 | . . . . . . . . . . . . . . 2 amplify_resonance 1 | . . . . . . . . . . . . . . 1 streamctrl_low 1 | . . . . . . . . . . . . . 1 . formatsys_high 2 | . . . . . . . . . . . . 1 . 1 Relay Couplers Released 12 | . . . . . . . . . . 5 . 3 4 . Machine Destruction 8 | . . . . . . . . . . 5 . 3 . . Programmers 4 | . . . . . . . . . . . . . 4 . Attached 3 | . . . . . . . . . . . . 2 . 1 Robots Rewired 1 | . . . . . . . . . 1 . . . . . Allies Hacked . | . . . . . . . . . . . . . . . Hacks Repelled . | . . . . . . . . . . . . . . . Allies | -11 -10 -10 -9 -9 -9 -8 -8 -8 -7 -7 -7 -7 -6 -6 -------- Run | Scr Mat Min Mat Min Exi Min Mat Gar Fac Gar Fac Gar Fac Gar Total Allies 5 | . . . . . . . . . 1 . . 1 2 1 Largest Group 1 | . . . . . . . . . 1 . . 1 1 1 Highest-Rated Group 47 | . . . . . . . . . 12 . . 32 32 47 Highest-Rated Ally 47 | . . . . . . . . . 12 . . 32 32 47 Total Orders 4 | . . . . . . . . . . . . . 4 . STAY 1 | . . . . . . . . . . . . . 1 . GOTO 2 | . . . . . . . . . . . . . 2 . FOLLOW 1 | . . . . . . . . . . . . . 1 . Ally Attacks 13 | . . . . . . . . . 5 . . 2 2 4 Total Damage 402 | . . . . . . . . . 68 . . 76 100 158 Kills 3 | . . . . . . . . . 1 . . . 1 1 Allies Corrupted . | . . . . . . . . . . . . . . . Allies Melted . | . . . . . . . . . . . . . . . Intel | -11 -10 -10 -9 -9 -9 -8 -8 -8 -7 -7 -7 -7 -6 -6 ------- Run | Scr Mat Min Mat Min Exi Min Mat Gar Fac Gar Fac Gar Fac Gar Robot Analysis Total . | . . . . . . . . . . . . . . . Derelict Logs Recovered 2 | . . 1 . 1 . . . . . . . . . . Drone Launches . | . . . . . . . . . . . . . . . Drone Recoveries . | . . . . . . . . . . . . . . . Exploration | -11 -10 -10 -9 -9 -9 -8 -8 -8 -7 -7 -7 -7 -6 -6 ------------- Run | Scr Mat Min Mat Min Exi Min Mat Gar Fac Gar Fac Gar Fac Gar Turns Passed 17420 | 73 1014 560 1534 1329 924 212 1139 220 2505 1465 1560 945 3789 151 Spaces Moved 9669 | 35 709 385 656 701 465 101 596 139 1354 630 790 578 2475 55 Core 9 | 9 . . . . . . . . . . . . . . Treads 2631 | 26 201 4 597 701 465 101 161 . 64 263 47 . 1 . Legs . | . . . . . . . . . . . . . . . Wheels 7029 | . 508 381 59 . . . 435 139 1290 367 743 578 2474 55 Hover . | . . . . . . . . . . . . . . . Flight . | . . . . . . . . . . . . . . . Fastest Speed 50 | 50 90 90 90 180 180 200 130 130 130 150 140 110 113 120 Average Speed 142 | 131 109 95 168 180 195 200 148 130 141 180 153 122 121 124 Slowest Speed 260 | 160 160 180 180 180 220 200 200 130 260 260 225 210 260 130 Overloaded Moves . | . . . . . . . . . . . . . . . Propulsion Burnouts . | . . . . . . . . . . . . . . . Robots Hopped . | . . . . . . . . . . . . . . . Cave-ins Triggered . | . . . . . . . . . . . . . . . Exploration Rate (%) 51 | 4 87 69 54 80 91 29 56 41 26 69 21 67 51 21 Regions Visited 14 Branch Regions 4 Pre-discovered Areas 2 | . 2 . . . . . . . . . . . . . Known Exits Taken 5 | . . 1 . . . . 1 . 1 . 1 . 1 . Unknown Exits Taken 6 | 1 1 . 1 1 1 1 . . . . . . . . Scrap Searched 2 | . . 1 . 1 . . . . . . . . . . Spaces Dug 128 | . . . . . . . 17 . 35 . 12 19 45 . Terrain Destroyed 716 | . 60 51 59 24 . . 50 54 103 32 41 107 112 23 Melee 56 | . . . . . . . 5 . 9 . 12 . 30 . Projectile 20 | . . . 2 . . . 5 . 2 . 1 6 4 . AOE 640 | . 60 51 57 24 . . 40 54 92 32 28 101 78 23 Actions | -11 -10 -10 -9 -9 -9 -8 -8 -8 -7 -7 -7 -7 -6 -6 --------- Run | Scr Mat Min Mat Min Exi Min Mat Gar Fac Gar Fac Gar Fac Gar Total 11829 | 49 820 480 886 735 481 112 730 158 1739 826 993 739 2979 102 Wait 425 | . 10 12 36 1 . 10 34 4 97 26 49 15 123 8 Move 9656 | 34 708 384 655 700 464 100 596 137 1354 628 790 576 2475 55 Hop . | . . . . . . . . . . . . . . . Pick Up 195 | 4 9 11 21 4 6 1 12 . 30 13 19 9 55 1 Fast Attach 53 | 6 1 . 4 1 3 . 2 . 7 4 8 4 13 . Attach 96 | . 6 5 12 1 . . 2 1 8 11 8 11 26 5 Detach 12 | . . . . . 2 . . . . 2 3 . 5 . Swap 237 | . 13 13 14 5 1 . 10 3 50 18 26 18 58 8 Drop 126 | . 2 . 12 4 5 1 6 . 37 1 16 2 40 . Fire 782 | 5 64 54 132 19 . . 58 13 106 93 48 49 116 25 Melee 127 | . . . . . . . 10 . 26 . 26 2 63 . Ram . | . . . . . . . . . . . . . . . Kick . | . . . . . . . . . . . . . . . Crush 8 | . 7 . . . . . . . . . . . 1 . Escape Stasis 78 | . . . . . . . . . . 30 . 48 . . Rewire 25 | . . 1 . . . . . . 24 . . . . . Trap 9 | . . . . . . . . . . . . 5 4 . Miscellaneous . | . . . . . . . . . . . . . . . Route ------- -11/Scrapyard -10/Materials (discovered 3 exits: *Mat x2 / [*Min]) -10/Mines (discovered 2 exits: *Mat x2) -9/Materials (discovered 4 exits: *Mat x2 / [*Min x2]) -9/Mines (discovered 3 exits: *Mat x2 / *Exi) -9/Exiles -8/Mines -8/Materials (discovered 3 exits: *Fac x2 / Gar) -8/Garrison -7/Factory (discovered 3 exits: [*Low x2] / Gar) -7/Garrison (discovered 3 exits: *Fac x3) -7/Factory (discovered 3 exits: *Fac / [*Low] / Gar) -7/Garrison (discovered 2 exits: *Fac x2) -6/Factory (discovered 4 exits: [*Fac] / [*Low x2] / Gar) -6/Garrison History --------- Turn | Location | Event 26 | -11/Scrapyard | Discovered new exit (range 16) 74 | -11/Scrapyard | Entered Materials 306 | -10/Materials | Build established: Mutant 384 | -10/Materials | Discovered new exit (range 13) 461 | -10/Materials | Discovered new exit (range 16) 791 | -10/Materials | Core integrity fell below 50% 831 | -10/Materials | Lost 6 parts (1p2n1u2w) 1036 | -10/Materials | Discovered new exit (range 5) 1088 | -10/Materials | Entered Mines 1118 | -10/Mines | Assisted by bots powering up and referring to "LRC-V3" 1127 | -10/Mines | Destroyed YI-UF0 1130 | -10/Mines | Found Prototype Launcher 1181 | -10/Mines | Discovered new exit (range 16) 1269 | -10/Mines | Identified exit to Materials 1367 | -10/Mines | Identified YI-UF0's Doublenader 1450 | -10/Mines | Core integrity fell below 20% 1648 | -10/Mines | Entered Materials 1648 | -9/Materials | Evolved 2 slots: Utility x2 1677 | -9/Materials | Discovered new exit (range 8) 1763 | -9/Materials | Lost 3 parts (1p2n) 1942 | -9/Materials | Discovered new exit (range 3) 2228 | -9/Materials | Discovered new exit (range 14) 2293 | -9/Materials | Build established: Scavenger-Mutant 2617 | -9/Materials | Discovered new exit (range 16) 2848 | -9/Materials | First assault squad dispatched 3104 | -9/Materials | Build established: Mutant 3182 | -9/Materials | Entered Mines 3184 | -9/Mines | Met a Derelict bent on vengeance 3197 | -9/Mines | Received a Rocket Launcher from a helpful Derelict 3304 | -9/Mines | Discovered new exit (range 11) 3475 | -9/Mines | Learned Materials emergency access door positions 3477 | -9/Mines | Discovered new exit (range 9) 3552 | -9/Mines | Deemed a non-threat by the Exiles lab entrance 3715 | -9/Mines | Build established: Scavenger-Mutant 4504 | -9/Mines | Discovered new exit (range 5) 4511 | -9/Mines | Entered Exiles 4556 | -9/Exiles | Met 8R-AWN 4585 | -9/Exiles | Met EX-HEX 4767 | -9/Exiles | Met EX-DEC 4810 | -9/Exiles | Visited The Gauntlet 4985 | -9/Exiles | Build established: Hauler-Mutant 5109 | -9/Exiles | Met EX-BIN 5137 | -9/Exiles | Aligned with FarCom system 5139 | -9/Exiles | Given EX-Vault access code 5189 | -9/Exiles | Opened EX-Vault 5203 | -9/Exiles | Found Chronowheel 5208 | -9/Exiles | Found Skeleton Box 5214 | -9/Exiles | Found Modified TNC 5255 | -9/Exiles | Warned to stay clear of 0b10 Research branches 5413 | -9/Exiles | Discovered new exit (range 11) 5435 | -9/Exiles | Stole three prototypes: Modified TNC, Skeleton Box, Chronowheel 5435 | -9/Exiles | Entered Mines 5621 | -8/Mines | Discovered new exit (range 8) 5647 | -8/Mines | Entered Materials 5647 | -8/Materials | Evolved 2 slots: Utility x2 6011 | -8/Materials | Discovered new exit (range 15) 6324 | -8/Materials | Discovered new exit (range 9) 6786 | -8/Materials | Identified exit to Garrison 6786 | -8/Materials | Entered Garrison 6793 | -8/Garrison | Installed Relay Interface Framework 6930 | -8/Garrison | Triggered checkpoint 6987 | -8/Garrison | Discovered new exit (range 15) 7006 | -8/Garrison | Entered Factory 7006 | -7/Factory | Evolved 2 slots: Utility x2 7008 | -7/Factory | FarCom data flow suspended 7537 | -7/Factory | Discovered new exit (range 6) 8504 | -7/Factory | Discovered new exit (range 12) 8845 | -7/Factory | Fabricated Hacking Suite? 9511 | -7/Factory | Identified exit to Garrison 9511 | -7/Factory | Entered Garrison 9591 | -7/Garrison | Triggered checkpoint 9610 | -7/Garrison | Triggered checkpoint 9664 | -7/Garrison | Triggered checkpoint 9710 | -7/Garrison | Lost 5 parts (4u1w) 9720 | -7/Garrison | Triggered checkpoint 9727 | -7/Garrison | Destroyed 9 combat bots 10284 | -7/Garrison | Garrison Relay disabled 10394 | -7/Garrison | Discovered new exit (range 13) 10596 | -7/Garrison | Discovered new exit (range 13) 10736 | -7/Garrison | Build established: Scavenger-Mutant 10742 | -7/Garrison | Triggered checkpoint 10796 | -7/Garrison | Triggered checkpoint 10864 | -7/Garrison | Spotted B-75 Beast 10864 | -7/Garrison | Spotted B-75 Beast 10909 | -7/Garrison | Discovered new exit (range 10) 10919 | -7/Garrison | Core integrity fell below 50% 10963 | -7/Garrison | Expanded RIF knowledge: Patrol Navigation 10976 | -7/Garrison | Entered Factory 11219 | -7/Factory | Repaired Proton Missile Launcher 11294 | -7/Factory | Lost 3 parts (1p1u1w) 11351 | -7/Factory | Repaired Imp. Light Armor Plating 11410 | -7/Factory | Build established: Hauler-Mutant 11554 | -7/Factory | Repaired Arm. Wheel 11951 | -7/Factory | Discovered new exit (range 11) 12481 | -7/Factory | Discovered new exit (range 15) 12536 | -7/Factory | Identified exit to Garrison 12536 | -7/Factory | Entered Garrison 12645 | -7/Garrison | Core integrity fell below 20% 12695 | -7/Garrison | Garrison Relay disabled 12725 | -7/Garrison | Lost 14 parts (1p4n5u4w) 12748 | -7/Garrison | Triggered checkpoint 12846 | -7/Garrison | Triggered checkpoint 12959 | -7/Garrison | Triggered checkpoint 12994 | -7/Garrison | Discovered new exit (range 17) 13071 | -7/Garrison | Build established: Bothacker-Mutant 13123 | -7/Garrison | Triggered checkpoint 13227 | -7/Garrison | Discovered new exit (range 13) 13247 | -7/Garrison | Expanded RIF knowledge: Alert ID Control 13481 | -7/Garrison | Entered Factory 13481 | -6/Factory | Accompanied by 1 ally 13481 | -6/Factory | Evolved 2 slots: Propulsion x1, Utility x1 13925 | -6/Factory | Build established: Scavenger-Mutant 13963 | -6/Factory | Discovered new exit (range 6) 14228 | -6/Factory | Discovered new exit (range 12) 14739 | -6/Factory | Build established: Hacker-Mutant 14867 | -6/Factory | Repaired Arm. Wheel 15213 | -6/Factory | Lost 6 parts (2n2u2w) 15363 | -6/Factory | Fabricated Adv. Hacking Suite? 15443 | -6/Factory | Build established: Hauler-Mutant 15514 | -6/Factory | Fabricated Adv. Hacking Suite (x1) 15674 | -6/Factory | Fabricated Adv. Hacking Suite (x1) 16010 | -6/Factory | System corruption reached 10% 16332 | -6/Factory | Build established: Hacker-Mutant 16517 | -6/Factory | Core integrity fell below 50% 16564 | -6/Factory | Lost 4 parts (1p1n1u1w) 16631 | -6/Factory | First assault squad dispatched 16674 | -6/Factory | Fabricated Arm. Huge Wheel (x2) 16701 | -6/Factory | Build established: Bothacker-Mutant 16848 | -6/Factory | Lost 3 parts (1u2w) 17146 | -6/Factory | Fabricated Adv. Hacking Suite (x1) 17231 | -6/Factory | Local fabrication network quarantined 17255 | -6/Factory | Discovered new exit (range 17) 17270 | -6/Factory | Identified exit to Garrison 17270 | -6/Factory | Entered Garrison 17391 | -6/Garrison | Triggered checkpoint 17391 | -6/Garrison | Triggered checkpoint 17392 | -6/Garrison | Core integrity fell below 20% 17421 | -6/Garrison | Destroyed by G-67 Veteran with Plasma Rifle Last Messages --------------- 17394_ Penetrated by Slug. 17396_ System corrupted: Matter fused (-7). 17397_ Slug penetrates Wall. 17397_ Penetrated by Slug. 17397_ System corrupted: Hvy. Missile Launcher targeting data glitched. 17399_ H-66 Slayer destroyed. 17400_ Penetrated by Slug. 17404_ H-66 Slayer destroyed. 17408_ G-50 Soldier destroyed. 17409_ Imp. Hardlight Generator destroyed. 17411_ System corrupted: IFF burst signal emitted. 17411_ G-50 Soldier destroyed. 17412_ Fission Core destroyed. 17412_ Gauss Rifle destroyed. 17418_ C-30 ARC bursts open, deploying its payload. 17418_ G-67 Veteran unfolds itself. 17418_ G-50 Soldier unfolds itself. 17418_ Hrd. Light Armor Plating destroyed. 17420_ Force Rifle destroyed. Map ----- +----------------------------------------------------+ | ?????????????????????????????????????????????????? | | ?????????????????????????????????????????????????? | | ?????????????????????????????????????????????????? | | ?????????????????????????????????????????????????? | | ?????????????????????????????????????????????????? | | ?????????????????????????????????????????????????? | | ??????????????????????######"""??????????????????? | | ?????????????????????? ???????????????????? | | ?????????????????????? ???????????????????? | | ?????????????????????? ???????????????????? | | ?????????????????????? # ???????????????????? | | ?????????????????????## # ????????????????????? | | ????????????????????? ????????????????????? | | ?????????????????????? g ????????????????????? | | ?????????????????????? g%g????????????????????? | | ??????????????????##?? g?????????????????????? | | ??????????????????? ### ?????????????????????? | | ????????????####???# ?????????????????????? | | ????????????# ???? ?????????????????????? | | ????????????# ????? % ??????????????????????? | | ????????????# #????? ??????????????????????? | | ????????????# #?????? Y ??????????????????????? | | ????????????# ####???? ??????????????????????? | | ????????????# # ### #??????????????????????? | | ????????????# #???? Y #??????????????????????? | | ????????????# #???????# @#??????????????????????? | | ????????????# #???????# #??????????????????????? | | #######"""### ######### #??????????????????????? | | # * #??????????????????????? | | # = = #??????????????????????? | | #######"""## = ###########??????????????????????? | | ???????????# "#????????????????????????????????? | | ???????????#" #????????????????????????????????? | | ???????????## =##????????????????????????????????? | | ????????????# #?????????????????????????????????? | | ????????????# #?????????????????????????????????? | | ????????????# #?????????????????????????????????? | | ????????????# #?????????????????????????????????? | | ????????????# #?????????????????????????????????? | | ????????????# #?????????????????????????????????? | | ???########## #?????????????????????????????????? | | ???# #?????????????????????????????????? | | ???# #?????????????????????????????????? | | ???# #########?????????????????????????????????? | | ???# #?????????????????????????????????????????? | | ???#####?????????????????????????????????????????? | | ?????????????????????????????????????????????????? | | ?????????????????????????????????????????????????? | | ?????????????????????????????????????????????????? | | ?????????????????????????????????????????????????? | +----------------------------------------------------+ Best States ------------- Heat Dissipation 65 Energy Generation 18 Energy Capacity 310 Matter Stores 300 Matter Capacity 300 Sight Range 22 Robot Scan Range 16 Terrain Scan Density 10 Armor Coverage 675 Resistance: TH 10 Resistance: EM 20 Evasion (%) 42 Recoil Reduction 2 Energy Filtering 30 Offensive Hacking 32 Defensive Hacking 12 Item Schematics ----------------- Lrg. Storage Unit | -9/Materials | Hacked Hacking Suite | -7/Factory | Hacked Adv. Hacking Suite | -6/Factory | Hacked Arm. Huge Wheel | -6/Factory | Hacked Gyrokinetic Inverter | -6/Factory | Hacked Proton Missile Launcher | -6/Factory | Hacked Robot Schematics ------------------ None Fabricated ------------ Hacking Suite | x1 | -7/Factory Adv. Hacking Suite | x1 | -6/Factory Adv. Hacking Suite | x1 | -6/Factory Adv. Hacking Suite | x1 | -6/Factory Arm. Huge Wheel | x2 | -6/Factory Adv. Hacking Suite | x1 | -6/Factory Alien Tech Used ----------------- None Achievements -------------- None Challenges ------------ None Game ------ Seed GuidedDerelictRouter Manual? 0 Play Time 02:35:58 Cumulative 834.4 hours Start 2019.11.23 @ 23:07:48 End 2019.11.24 @ 01:52:03 Sessions 1 Manual Loads 0 Difficulty Rogue Special Mode None Game No. 327 Rogue 327 Adventurer 0 Explorer 0 Win Type - Total 21 Types 11/1/7/0/0/0/2 Lore% 95 Gallery% 96 Achievement% 79 Wizard Run 0 Options --------- ASCII 0 Keyboard 0 Movement Vi Keybinds 0 Fullscreen 0 Font 12/Crisp Map View 76x50 Tactical HUD 1 Map Filters NONE Filters NONE Steam 1 RUN: 3ac90fa9-8552-41a9-9b13-c0227a75b3db